Cogmind - Beta 10.2 --- EXPLORER MODE // 2021.08.25 @ 17:46:29 Player: UdenTiso Result: Self-destructed Performance ------------- Evolutions (2) 1000 Regions Visited (5) 1000 Robots Destroyed (8) 40 Value Destroyed (339) 339 Prototype IDs (0) 0 Alien Tech Used (0) 0 Bonus (270) 270 TOTAL SCORE: 2649 Bonus ------- Pacifist 270 Cogmind --------- Core Integrity 504/550 Matter 195/300 Energy 88/250 System Corruption 0% Temperature Cool (-100) Movement Walking (130) Location -8/Materials Parts ------- > --- POWER (1) -------- Ion Engine > --- PROPULSION (4) --- Titanium Leg Titanium Leg Titanium Leg Titanium Leg > --- UTILITY (5) ------ Cryofiber Web Medium Storage Unit Large Storage Unit Large Storage Unit Power Shielding > --- WEAPON (2) ------- Assault Rifle Light Assault Rifle > --- INVENTORY (20) --- Light Ion Engine Light Treads Light Treads Aluminum Leg Titanium Leg Cesium-ion Thruster Seismic Analyzer Small Laser Improved Grenade Launcher Peak State ------------ > --- POWER ------------ Ion Engine > --- PROPULSION ------- Titanium Leg Titanium Leg Titanium Leg Titanium Leg > --- UTILITY ---------- Cryofiber Web Medium Storage Unit Large Storage Unit Large Storage Unit Power Shielding > --- WEAPON ----------- Assault Rifle Light Assault Rifle > --- INVENTORY -------- Light Ion Engine Light Treads Light Treads Aluminum Leg Titanium Leg Cesium-ion Thruster Seismic Analyzer Small Laser Improved Grenade Launcher [Rating: 23] Favorites ----------- Power Ion Engine Engine Ion Engine Propulsion Titanium Leg Leg Titanium Leg Utility Medium Storage Unit Device Cryofiber Web Storage Medium Storage Unit Processor Targeting Computer Protection Power Shielding Weapon Assault Rifle Ballistic Gun Assault Rifle Build | -11 -10 -10 -10 -9 -8 ------- Run | Scr Mat Min Exi Min Mat Slots Evolved 5 | . 1 . . . 4 Power . | . . . . . . Propulsion 2 | . . . . . 2 Utility 3 | . 1 . . . 2 Weapon . | . . . . . . Parts Attached 13 | . 1 . . . 12 Power 1 | . . . . . 1 Engine 1 | . . . . . 1 Core . | . . . . . . Reactor . | . . . . . . Propulsion 7 | . . . . . 7 Treads . | . . . . . . Leg 7 | . . . . . 7 Wheel . | . . . . . . Hover . | . . . . . . Flight . | . . . . . . Utility 5 | . 1 . . . 4 Device 1 | . . . . . 1 Storage 2 | . . . . . 2 Processor 1 | . . . . . 1 Hackware . | . . . . . . Protection 1 | . 1 . . . . Artifact . | . . . . . . Weapon . | . . . . . . Energy Gun . | . . . . . . Energy Cannon . | . . . . . . Ballistic Gun . | . . . . . . Ballistic Cannon . | . . . . . . Launcher . | . . . . . . Special Weapon . | . . . . . . Impact Weapon . | . . . . . . Slashing Weapon . | . . . . . . Piercing Weapon . | . . . . . . Special Melee Weapon . | . . . . . . Unidentified Prototypes . | . . . . . . Parts Lost 1 | . . . . . 1 Power . | . . . . . . Propulsion . | . . . . . . Utility 1 | . . . . . 1 Weapon . | . . . . . . Highest Loss Streak 1 | . . . . . 1 Average Slot Usage (%) 93 | . 100 100 100 100 90 Engine 9 | . 12 12 12 12 8 Leg 29 | . 25 25 25 25 31 Storage 13 | . 12 12 12 12 14 Processor 3 | . . . . . 4 Protection 16 | . 25 25 25 25 12 Ballistic Gun 18 | . 25 25 25 25 16 Naked Turns . | . . . . . . Heaviest Build 50 | 15 18 18 18 18 50 Greatest Support 68 | 20 20 20 20 20 68 Greatest Overweight (x) . | . . . . . . Average Overweight (x) . | . . . . . . Largest Inventory Capacity 20 | . 8 8 8 8 20 Average Capacity 11 | . 8 8 8 8 12 Most Carried 9 | . 6 6 6 6 9 Average Carried 6 | . 6 6 6 6 6 Final Capacity 20 | 8 8 8 8 8 20 Final Carried 9 | 7 6 6 6 6 9 Class Distribution -------------------- 100% | Hacker-Mutant Dominant Class ---------------- Hacker-Mutant | -10/Materials Hacker-Mutant | -10/Mines Hacker-Mutant | -10/Exiles Hacker-Mutant | -9/Mines Hacker-Mutant | -8/Materials Resources | -11 -10 -10 -10 -9 -8 ----------- Run | Scr Mat Min Exi Min Mat Matter Collected 371 | 173 . 37 . . 161 Remotely . | . . . . . . Salvage Created 397 | . . . . . 397 Parts 20 | . . . . . 20 Haulers Intercepted . | . . . . . . Recyclers Shooed . | . . . . . . Parts Field Recycled . | . . . . . . Retrieved Matter . | . . . . . . Parts Self-Destructed . | . . . . . . Prevented . | . . . . . . Kills | -11 -10 -10 -10 -9 -8 ------- Run | Scr Mat Min Exi Min Mat Combat Hostiles Destroyed 7 | . . . . . 7 Guns 7 | . . . . . 7 Classes Destroyed 4 | . . . . . 4 Watcher 1 | . . . . . 1 Grunt 4 | . . . . . 4 Brawler 1 | . . . . . 1 Sentry 2 | . . . . . 2 Best Kill Streak 3 | . . . . . 3 Combat Bots Only 3 | . . . . . 3 Max Kills in Single Turn 1 | . . . . . 1 Gunslinging . | . . . . . . Exploded . | . . . . . . Melee . | . . . . . . Uniques/NPCs Destroyed . | . . . . . . Combat | -11 -10 -10 -10 -9 -8 -------- Run | Scr Mat Min Exi Min Mat Damage Taken 559 | . . 9 . . 550 Core 46 | . . . . . 46 Absorbed by Shields . | . . . . . . Core Remaining (%) 100 | 100 . . . 100 . Volleys Fired 39 | . . . . . 39 Largest 2 | . . . . . 2 Hottest 40 | . . . . . 40 Shots Fired 78 | . . . . . 78 Gun 78 | . . . . . 78 Cannon . | . . . . . . Launcher . | . . . . . . Special . | . . . . . . Kinetic 78 | . . . . . 78 Thermal . | . . . . . . Explosive . | . . . . . . Electromagnetic . | . . . . . . Robot Hit Streak 19 | . . . . . 19 Robot Miss Streak 1 | . . . . . 1 Penetration Max . | . . . . . . Secondary Targets 2 | . . . . . 2 Max Gunslinging Chain 1 | . . . . . 1 Shots Hit Robots 69 | . . . . . 69 Core Hits 26 | . . . . . 26 Critical Hits . | . . . . . . Critical Kills . | . . . . . . Critical Parts Destroyed . | . . . . . . Melee Attacks . | . . . . . . Impact . | . . . . . . Slashing . | . . . . . . Piercing . | . . . . . . Sneak Attacks . | . . . . . . Combat Hostiles . | . . . . . . Follow-up Attacks . | . . . . . . Damage Inflicted 760 | . . 26 . . 734 Guns 734 | . . . . . 734 Cannons . | . . . . . . Explosions . | . . . . . . Melee . | . . . . . . Ramming 26 | . . 26 . . . Kinetic 734 | . . . . . 734 Thermal . | . . . . . . Explosive . | . . . . . . Electromagnetic . | . . . . . . Impact . | . . . . . . Slashing . | . . . . . . Piercing . | . . . . . . Highest Corruption . | . . . . . . Average Corruption . | . . . . . . Corruption Purged . | . . . . . . Overload Shots . | . . . . . . Overflow Damage . | . . . . . . Projectiles . | . . . . . . Explosions . | . . . . . . Melee . | . . . . . . Knockbacks . | . . . . . . Impact . | . . . . . . Kinetic . | . . . . . . Secondary . | . . . . . . Self-Inflicted Damage 9 | . . 9 . . . Shots . | . . . . . . Rammed 4 | . . 3 . . 1 Targets Rammed 5 | . . 4 . . 1 Kicked 1 | . . 1 . . . Crushed . | . . . . . . Highest Temperature 32 | . . . . . 32 Average Temperature 9 | . . . . . 9 Received Heat Transfer 477 | . . . . . 477 Siege Activations . | . . . . . . Robots Corrupted . | . . . . . . Combat Hostiles . | . . . . . . Parts Fried . | . . . . . . Impact Corruptions . | . . . . . . Robots Melted . | . . . . . . Combat Hostiles . | . . . . . . Parts Melted . | . . . . . . Heat Transferred . | . . . . . . Parts Sabotaged . | . . . . . . Parts Stolen . | . . . . . . Parts Stripped . | . . . . . . Power Chain Reactions . | . . . . . . Missiles Intercepted . | . . . . . . Alert | -11 -10 -10 -10 -9 -8 ------- Run | Scr Mat Min Exi Min Mat Peak Influence 132 | . 15 4 . . 132 Initial 4 | . . 4 . . . Average 41 | . 4 4 . . 54 Maximum Alert Level . | . . . . . . Low Security (%) 100 | . 100 100 . 100 100 Level 1 . | . . . . . . Level 2 . | . . . . . . Level 3 . | . . . . . . Level 4 . | . . . . . . Level 5 . | . . . . . . High Security . | . . . . . . Max Security . | . . . . . . Squads Dispatched . | . . . . . . Investigation . | . . . . . . Extermination . | . . . . . . Reinforcement . | . . . . . . Assault . | . . . . . . Garrison . | . . . . . . Intercept . | . . . . . . Construction Impeded . | . . . . . . Haulers Reinforced . | . . . . . . Stealth | -11 -10 -10 -10 -9 -8 --------- Run | Scr Mat Min Exi Min Mat Distress Signals . | . . . . . . Communications Jammed . | . . . . . . Distress Signals . | . . . . . . Times Spotted 12 | . 1 . . . 11 Peak Tracking Total 3 | . 1 . . . 3 Tactical Retreats . | . . . . . . Traps | -11 -10 -10 -10 -9 -8 ------- Run | Scr Mat Min Exi Min Mat Traps Triggered . | . . . . . . Indirectly . | . . . . . . Trap Hack Attempts . | . . . . . . Triggered . | . . . . . . Disarmed . | . . . . . . Reprogrammed . | . . . . . . Reused . | . . . . . . Traps Extracted . | . . . . . . Installed . | . . . . . . Triggered . | . . . . . . Machines | -11 -10 -10 -10 -9 -8 ---------- Run | Scr Mat Min Exi Min Mat Machines Disabled . | . . . . . . Max in Single Turn . | . . . . . . Machines Sabotaged . | . . . . . . Garrisons Compromised . | . . . . . . Overloaded Fab Kills . | . . . . . . Fab Network Shutdowns . | . . . . . . Hacking | -11 -10 -10 -10 -9 -8 --------- Run | Scr Mat Min Exi Min Mat Machines Accessed 1 | . . . . . 1 Terminals . | . . . . . . Fabricators . | . . . . . . Repair Stations . | . . . . . . Recycling Units . | . . . . . . Scanalyzers . | . . . . . . Garrison Access 1 | . . . . . 1 Total Hacks 1 | . . . . . 1 Successful 1 | . . . . . 1 Failed . | . . . . . . Catastrophic . | . . . . . . Database Lockouts . | . . . . . . Manual . | . . . . . . Terminals . | . . . . . . Fabricators . | . . . . . . Repair Stations . | . . . . . . Recycling Units . | . . . . . . Scanalyzers . | . . . . . . Garrison Access 1 | . . . . . 1 Terminal Hacks . | . . . . . . Fabricator Hacks . | . . . . . . Repair Station Hacks . | . . . . . . Recycling Unit Hacks . | . . . . . . Scanalyzer . | . . . . . . Garrison Access Hacks 1 | . . . . . 1 Unlock Access 1 | . . . . . 1 Unauthorized Hacks . | . . . . . . Terminals . | . . . . . . Fabricators . | . . . . . . Repair Stations . | . . . . . . Recycling Units . | . . . . . . Scanalyzers . | . . . . . . Garrison Access . | . . . . . . Data Cores Recovered . | . . . . . . Used . | . . . . . . Hacking Detections 1 | . . . . . 1 Full Trace Events . | . . . . . . Feedback Events . | . . . . . . Feedback Blocked . | . . . . . . Robot Schematics Acquired . | . . . . . . Robots Built . | . . . . . . Matter . | . . . . . . Time . | . . . . . . Total Robot Build Rating . | . . . . . . Part Schematics Acquired . | . . . . . . Parts Built . | . . . . . . Matter . | . . . . . . Time . | . . . . . . Total Part Build Rating . | . . . . . . Parts Repaired . | . . . . . . Time . | . . . . . . Parts Recycled . | . . . . . . Recycled Matter . | . . . . . . Retrieved Matter . | . . . . . . Retrieved Components . | . . . . . . Parts Scanalyzed . | . . . . . . Part Schematics Acquired . | . . . . . . Parts Damaged . | . . . . . . Bothacking | -11 -10 -10 -10 -9 -8 ------------ Run | Scr Mat Min Exi Min Mat Used RIF Installer . | . . . . . . Robots Hacked . | . . . . . . Non-combat . | . . . . . . Combat . | . . . . . . Robot Hacks Applied . | . . . . . . Relay Couplers Released . | . . . . . . Robots Rewired . | . . . . . . Allies Hacked . | . . . . . . Hacks Repelled . | . . . . . . Allies | -11 -10 -10 -10 -9 -8 -------- Run | Scr Mat Min Exi Min Mat Total Allies . | . . . . . . Largest Group . | . . . . . . Highest-Rated Group . | . . . . . . Highest-Rated Ally . | . . . . . . Total Orders . | . . . . . . Ally Attacks . | . . . . . . Total Damage . | . . . . . . Kills . | . . . . . . Allies Corrupted . | . . . . . . Allies Melted . | . . . . . . Intel | -11 -10 -10 -10 -9 -8 ------- Run | Scr Mat Min Exi Min Mat Robot Analysis Total . | . . . . . . Derelict Logs Recovered . | . . . . . . Drone Launches . | . . . . . . Drone Recoveries . | . . . . . . Exploration | -11 -10 -10 -10 -9 -8 ------------- Run | Scr Mat Min Exi Min Mat Turns Passed 812 | . 30 147 35 28 572 Spaces Moved 517 | 1 25 119 30 24 318 Core . | . . . . . . Treads . | . . . . . . Legs 517 | 1 25 119 30 24 318 Wheels . | . . . . . . Hover . | . . . . . . Flight . | . . . . . . Fastest Speed 120 | 120 120 120 120 120 120 Average Speed 124 | 120 120 120 120 120 126 Slowest Speed 130 | 120 120 120 120 120 130 Overloaded Moves . | . . . . . . Propulsion Burnouts . | . . . . . . Robots Hopped . | . . . . . . Cave-ins Triggered . | . . . . . . Exploration Rate (%) 17 | 2 11 38 8 16 28 Regions Visited 5 Branch Regions 3 Pre-discovered Areas . | . . . . . . Known Exits Taken 5 | 1 1 1 1 1 . Unknown Exits Taken . | . . . . . . Scrap Searched . | . . . . . . Spaces Dug . | . . . . . . Terrain Destroyed . | . . . . . . Melee . | . . . . . . Projectile . | . . . . . . AOE . | . . . . . . Terrain Rammed . | . . . . . . Walls Destroyed . | . . . . . . Machines Disabled . | . . . . . . Actions | -11 -10 -10 -10 -9 -8 --------- Run | Scr Mat Min Exi Min Mat Total 613 | . 25 122 29 23 414 Wait 38 | . . . . . 38 Move 512 | . 24 118 29 23 318 Hop . | . . . . . . Pick Up 2 | . . . . . 2 Fast Attach 5 | . . . . . 5 Attach 2 | . 1 . . . 1 Detach . | . . . . . . Swap 6 | . . . . . 6 Drop 4 | . . . . . 4 Fire 39 | . . . . . 39 Melee . | . . . . . . Ram . | . . . . . . Kick 5 | . . 4 . . 1 Crush . | . . . . . . Escape Stasis . | . . . . . . Rewire . | . . . . . . Trap . | . . . . . . Miscellaneous . | . . . . . . Route ------- -11/Scrapyard -10/Materials -10/Mines -10/Exiles -9/Mines -8/Materials (discovered 1 exit: Gar) History --------- Turn | Location | Event 1 | -11/Scrapyard | Identified exit to Materials 1 | -11/Scrapyard | Discovered exit to Materials (range 0) 1 | -11/Scrapyard | Entered Materials 1 | -10/Materials | Evolved 1 slot: Utility x1 8 | -10/Materials | Identified exit to Mines 8 | -10/Materials | Discovered exit to Mines (range 16) 31 | -10/Materials | Entered Mines 173 | -10/Mines | Deemed a non-threat by the Exiles lab entrance 173 | -10/Mines | Identified exit to Exiles 173 | -10/Mines | Discovered exit to Exiles (range 5) 178 | -10/Mines | Entered Exiles 178 | -10/Exiles | Found Exiles lab abandoned 198 | -10/Exiles | Identified exit to Mines 198 | -10/Exiles | Discovered exit to Mines (range 15) 213 | -10/Exiles | Entered Mines 231 | -9/Mines | Identified exit to Materials 231 | -9/Mines | Discovered exit to Materials (range 7) 241 | -9/Mines | Entered Materials 241 | -8/Materials | Evolved 4 slots: Propulsion x2, Utility x2 250 | -8/Materials | Identified exit to Garrison 305 | -8/Materials | Build established: Hacker-Mutant 813 | -8/Materials | Self-destructed Last Messages --------------- 00554_ K-01 Serf collects debris. 00558_ Lgt. Armor Plating destroyed. 00558_ K-01 Serf collects debris. 00561_ R-06 Scavenger collects Lgt. Nuclear Core. 00561_ K-01 Serf collects debris. 00561_ Y-45 Defender destroyed. 00561_ K-01 Serf collects debris. 00565_ Acquired 11 matter. 00565_ K-01 Serf collects debris. 00573_ Dropped Aluminum Leg. 00580_ Dropped Titanium Leg. 00580_ Acquired Imp. Grenade Launcher. 00598_ Acquired Lrg. Storage Unit. 00678_ Y-45 Defender destroyed. 00700_ Acquired Cesium-ion Thruster. 00737_ Discarded Broken Targeting Computer. 00738_ Acquired Cryofiber Web. 00754_ W-25 Informer destroyed. 00774_ Acquired 25 matter. 00812_ Acquired 125 matter. Map ----- +----------------------------------------------------+ | ?# "T" """ # # # """"" #????????????# #? | | ?# """ ###+###### # """"" #????????????# #? | | ?# * #?# ####?# #########????????????# #? | | ?############# !!### #????????????????????# #? | | ??????# = ## !## #???????#????????????# #? | | ??????# ## ## #???????# ??????????# #? | | ??????# == ## ## #????????? ?????????# #? | | #######*= # !## #???????####+######### ## | | # #[ % # !!###=!#? """ # | | # #! ! + ####?# !#? """ + | | # # % # ######! ## """ # | | # #+##### #??????# ########+####### | | # #%#### ^ #??????# #??????????????? | | # + ! ^^ #??????# #??????????????? | | # # """ T #??????# #??????????????? | | # ## """ ^ #??????# #??????????????? | | # ## ### """ #??????# #??????????????? | | # ## #?# #??????# #??????????????? | | # ## #?# ^ #?###??# #??????????????? | | # ## #?# ###T#### #??????????????? | | ######## ### ###+###????????? | | ???????# # = +???? | | ???????# # ##????????? | | ??????##+###+####### ##+##########+##?????????? | | ??????# %! ###### #????????????????? | | ??????# #????#@ """ /#????????????????? | | ??????# #????# """ #????????????????? | | ??????# #????# """ #????????????????? | | ??????# #????# !#????????????????? | | ??????##############?????########????????????????? | | | | | | | | | | | | | | | | | | | | | | | | | | | | | | | | | | | | | | | | | +----------------------------------------------------+ Best States ------------- Heat Dissipation 31 Energy Generation 10 Energy Capacity 250 Matter Stores 300 Matter Capacity 300 Sight Range 16 Terrain Scan Density 10 Base Temperature (-) 100 Armor Coverage 150 Resistance: KI 35 Resistance: TH 35 Resistance: EX 35 Resistance: EM 35 Resistance: I 35 Resistance: S 35 Resistance: P 35 Power Shielding 33 Evasion (%) 40 Targeting Accuracy 5 Offensive Hacking 20 Item Schematics ----------------- None Robot Schematics ------------------ None Fabricated ------------ Nothing Alien Tech Used ----------------- None Achievements -------------- None Challenges ------------ None Game ------ Seed drdrew Manual? 1 Play Time 00:13:28 Cumulative 10.1 hours Start 2021.08.25 @ 16:12:51 End 2021.08.25 @ 17:46:29 Sessions 3 Manual Loads 0 Difficulty Explorer Special Mode None Game No. 14 Rogue 0 Adventurer 9 Explorer 5 Win Type - Total 0 Types 0/0/0/0/0/0/0/0/0 Lore% 19 Gallery% 20 Achievement% 18 Wizard Run 0 Options --------- ASCII 0 Keyboard 0 Movement Mouse Keybinds 0 Fullscreen 1 Font 18/X11 Map View 76x50 Tactical HUD 1 Map Filters NONE Filters NONE Steam 1 RUN: da46ed2b-a874-4045-89eb-f6b6e70b6ef4